[Event "7th Sharjah Masters 2024"]
[Site "Sharjah"]
[Date "2024.05.14"]
[Round "1.37"]
[White "Theodorou, Nikolas"]
[Black "Samant Aditya S"]
[Result "1-0"]
[ECO "D37"]
[WhiteElo "2617"]
[BlackElo "2501"]
[Annotator "TA"]
[PlyCount "115"]
[EventDate "2024.05.13"]
[EventType "swiss"]
[EventCountry "UAE"]
[SourceTitle "playchess.com"]
[Source "ChessBase"]
[SourceQuality "1"]
[TimeControl "5400+30"]

{[%evp 25,115,68,77,74,100,100,95,90,99,104,99,99,99,108,101,110,111,102,116,112,112,112,109,116,119,101,108,104,104,103,228,230,230,224,222,224,214,219,198,193,224,224,202,223,220,220,356,346,341,235,220,228,352,388,351,264,251,181,174,177,180,176,457,457,938,925,887,875,1072,916,929,839,1015,1005,5029,5021,4917,1383,2071,1800,1439,1379,29985,29986,29986,29985,29987,29988,29988,29989,29989,29990]} 1. d4 {[%emt 0:00:04]} Nf6 {[%emt 0:00:12]} 2. Nf3 {[%emt 0:00:13]} d5 {[%emt 0:00:22]} 3. Bf4 {[%emt 0:00:24]} e6 {[%emt 0:01:23]} 4. e3 {[%emt 0:00:36]} c5 {[%emt 0:00:53]} 5. Be2 {[%emt 0:00:16]} Nc6 {[%emt 0:01:23]} 6. O-O {[%emt 0:00:32]} Bd6 {[%emt 0:14:38]} 7. dxc5 {[%emt 0:00:19]} Bxc5 {[%emt 0:03:09]} 8. c4 {[%emt 0:00:10]} O-O {[%emt 0:01:31]} 9. Nc3 {[%emt 0:03:30]} a6 {[%emt 0:06:08]} 10. cxd5 {[%emt 0:00:27]} exd5 {[%emt 0:04:31]} 11. Rc1 {[%emt 0:00:10] D37: Queen's Gambit Declined: 5 Bf4.} d4 {[%emt 0:12:10]} 12. Na4 {[%emt 0:09:05]} Ba7 {[%emt 0:01:12]} 13. exd4 {[%emt 0:02:56]} Nxd4 {[%emt 0:01:46]} 14. Nxd4 {[%emt 0:01:12]} Qxd4 {[%emt 0:00:21]} 15. Qxd4 {[%emt 0:00:45]} Bxd4 {[%emt 0:00:15]} 16. Bf3 $146 {[%emt 0:00:07]} ({Predecessor:} 16. Rfd1 Ba7 17. Nc5 Bxc5 18. Rxc5 Be6 19. Bf3 Rfd8 20. Rdc1 Bd5 21. Bc7 Rd7 22. Be5 Bxf3 23. Bxf6 {½-½ Schoetzig,A (2216)-Rohne,L (2157) Oberliga Ost-A 1112 2011 (9.4)}) 16... Re8 {[%emt 0:21:42]} 17. Rfd1 {[%emt 0:18:26]} Ba7 {[%emt 0:00:25]} 18. h3 {[%emt 0:00:28]} Bd7 {[%emt 0:08:38]} 19. Rxd7 {[%emt 0:01:54]} Nxd7 {[%emt 0:00:07]} 20. Bxb7 {[%emt 0:00:04]} Rad8 {[%emt 0:02:56]} 21. Bc7 $1 {[%emt 0:00:33]} (21. Bxa6 Re4 22. Bc7 Rde8 $17 (22... Rxa4 23. Bb5 $11)) 21... Nb8 {[%emt 0:09:17]} 22. Bxd8 {[%emt 0:01:07]} Rxd8 {[%emt 0:00:02]} 23. Bf3 {[%emt 0:12:38]} g6 {[%emt 0:01:31]} 24. Kf1 {[%emt 0:03:19]} Kg7 {[%emt 0:04:09]} 25. Be2 {[%emt 0:02:49]} a5 {[%emt 0:01:56]} 26. Rc7 {[%emt 0:03:31]} Rd7 {[%emt 0:00:31]} 27. Rc8 {[%emt 0:00:03]} Rd4 {[%emt 0:01:47]} (27... Rd5 $16 {was necessary.} 28. Nc3 Rc5 29. Rxc5 Bxc5) 28. Nc3 $1 $18 {[%emt 0:03:01]} Rf4 {[%emt 0:00:50] [#]} 29. f3 $1 {[%emt 0:03:38]} Rf6 {[%emt 0:00:37]} 30. Nb5 {[%emt 0:11:26]} Nc6 {[%emt 0:00:03]} 31. Nc7 {[%emt 0:01:09]} (31. Nxa7 Nxa7 32. Ra8 Nc6) 31... Kh6 {[%emt 0:00:51] [#]} 32. Ne8 $1 {[%emt 0:00:06]} Re6 {[%emt 0:00:09]} 33. Bc4 {[%emt 0:00:08]} Re5 {[%emt 0:01:00]} 34. Nd6 {[%emt 0:03:44]} Rc5 {[%emt 0:00:12]} 35. Nxf7+ {[%emt 0:01:22]} (35. Bxf7 Rc1+ 36. Ke2 Nd4+ 37. Kd3 Rd1+ 38. Kc4 Rd2 $11) 35... Kh5 {[%emt 0:00:50]} (35... Kg7 $142) 36. Rh8 $18 {[%emt 0:02:58]} Kh4 {[%emt 0:00:27]} 37. Nd6 {[%emt 0:04:34]} h5 {[%emt 0:00:26]} 38. b3 {[%emt 0:00:13]} Ne7 {[%emt 0:00:33]} (38... Nd4 {was worth a try.} 39. Ra8 Rc7) 39. Ne4 $18 {[%emt 0:02:59]} Re5 {[%emt 0:00:21]} 40. Re8 {[%emt 0:02:49]} Bd4 {[%emt 0:00:12]} 41. Bf7 {[%emt 0:02:03]} Nf5 {[%emt 0:00:53]} 42. Rxe5 {[%emt 0:00:59]} ({Don't do} 42. Bxg6 Ne3+ 43. Kf2 Nd5+ 44. Ke1 Rxe8 $18) 42... Bxe5 {[%emt 0:00:02]} 43. Bxg6 {[%emt 0:00:25]} Ne3+ $2 {[%emt 0:01:03]} (43... Ng3+ 44. Kf2 Bd4+ 45. Ke1 Nxe4) 44. Kf2 $18 {[%emt 0:00:41]} Bd4 {[%emt 0:00:08]} (44... Nd1+ $142 45. Ke2 Nc3+ 46. Kf2 Nxe4+ 47. fxe4 (47. Bxe4 Bd4+ 48. Ke2 Kg3 $18) 47... Kg5) 45. f4 $18 {[%emt 0:00:48]} Nc2+ {[%emt 0:00:21]} 46. Ke2 {[%emt 0:00:37]} Bb6 {[%emt 0:00:30]} 47. f5 {[%emt 0:00:51]} Nd4+ {[%emt 0:00:19]} 48. Kd3 {[%emt 0:00:53]} Nc6 {[%emt 0:00:02]} 49. Be8 {[%emt 0:00:23]} Ne5+ {[%emt 0:00:07]} 50. Ke2 {[%emt 0:00:13]} Bd4 {[%emt 0:00:51]} 51. a3 {[%emt 0:01:59]} Bb2 {[%emt 0:00:14]} 52. b4 {[%emt 0:00:20]} axb4 {[%emt 0:00:08]} 53. axb4 {[%emt 0:00:03]} Bd4 {[%emt 0:00:06]} 54. f6 {[%emt 0:00:45]} Bb6 {[%emt 0:00:09]} 55. f7 {[%emt 0:00:58]} Ng6 {[%emt 0:00:03]} 56. Bd7 {[%emt 0:00:22]} Bc7 {[%emt 0:00:04]} 57. Bf5 {[%emt 0:00:37]} Nf8 {[%emt 0:00:08]} 58. b5 {[%emt 0:00:09]} 1-0

[Event "7th Sharjah Masters 2024"]
[Site "Sharjah"]
[Date "2024.05.14"]
[Round "1.38"]
[White "Suleymenov, Alisher"]
[Black "Ivanchuk, Vasyl"]
[Result "0-1"]
[ECO "E12"]
[WhiteElo "2501"]
[BlackElo "2609"]
[Annotator "RC"]
[PlyCount "86"]
[EventDate "2024.05.13"]
[EventType "swiss"]
[EventCountry "UAE"]
[SourceTitle "playchess.com"]
[Source "ChessBase"]
[SourceQuality "1"]
[TimeControl "5400+30"]

1. d4 {[%emt 0:00:04]} Nf6 {[%emt 0:00:08]} 2. c4 {[%emt 0:00:06]} e6 {[%emt 0:00:03]} 3. Nf3 {[%emt 0:00:07]} b6 {[%emt 0:00:03]} 4. a3 {[%emt 0:00:09]} Bb7 {[%emt 0:01:19]} 5. Nc3 {[%emt 0:00:06]} d5 {[%emt 0:00:04]} 6. cxd5 {[%emt 0:00:07]} exd5 {[%emt 0:00:02]} 7. Bg5 {[%emt 0:01:38]} Be7 {[%emt 0:00:21]} 8. Qa4+ {[%emt 0:01:56]} c6 {[%emt 0:01:59]} 9. e3 {[%emt 0:16:27]} Nbd7 {[%emt 0:10:22]} 10. Bd3 {[%emt 0:04:56]} h6 {[%emt 0:00:34]} 11. Bf4 {[%emt 0:07:50]} Nh5 {[%emt 0:01:41]} 12. Be5 {[%emt 0:00:45]} Nhf6 {[%emt 0:00:05]} 13. h3 {[%emt 0:05:52]} O-O {[%emt 0:18:02]} 14. Bh2 {[%emt 0:03:11]} c5 {[%emt 0:09:22]} 15. Rd1 {[%emt 0:05:07]} Ne4 {[%emt 0:07:04]} 16. Bxe4 {[%emt 0:04:21]} dxe4 {[%emt 0:00:27]} 17. Ne5 {[%emt 0:00:07]} Nxe5 {[%emt 0:01:18]} 18. dxe5 {[%emt 0:00:49]} Qe8 {[%emt 0:16:43]} 19. Rd7 {[%emt 0:06:00]} Bc8 {[%emt 0:01:37]} 20. Rxa7 {[%emt 0:03:37]} b5 {[%emt 0:10:36]} 21. Rxe7 {[%emt 0:00:24]} bxa4 {[%emt 0:00:08]} 22. Rxe8 {[%emt 0:00:05]} Rxe8 {[%emt 0:00:03]} 23. Nxe4 {[%emt 0:00:09]} Rb8 {[%emt 0:07:55]} 24. Nxc5 {[%emt 0:01:27]} Rxb2 {[%emt 0:00:22]} 25. O-O {[%emt 0:00:10]} Rc2 {[%emt 0:00:27]} 26. Ne4 {[%emt 0:05:12]} Be6 {[%emt 0:03:33]} 27. Bg3 {[%emt 0:20:26]} Ra2 {[%emt 0:01:22]} 28. Nd6 {[%emt 0:04:55]} Rb8 {[%emt 0:01:58]} 29. f4 {[%emt 0:00:04]} Rbb2 {[%emt 0:00:41]} 30. Bf2 {[%emt 0:00:05]} Rxa3 {[%emt 0:00:49]} 31. f5 {[%emt 0:00:06]} Bb3 {[%emt 0:00:35]} 32. Nb5 {[%emt 0:01:46]} Raa2 {[%emt 0:00:36]} 33. Nc3 {[%emt 0:00:05]} Bc4 {[%emt 0:00:08]} 34. Rc1 {[%emt 0:00:08]} Ra3 {[%emt 0:01:13]} 35. Nd1 {[%emt 0:00:44]} Rd2 {[%emt 0:04:03]} 36. Be1 {[%emt 0:00:04]} Rd7 {[%emt 0:02:08]} 37. Bb4 {[%emt 0:06:35]} Rb3 {[%emt 0:00:02]} 38. Bd6 {[%emt 0:00:08]} Bd3 {[%emt 0:00:45]} 39. Nc3 {[%emt 0:02:00]} a3 {[%emt 0:00:24]} 40. e4 {[%emt 0:00:02]} Rd8 {[%emt 0:00:25]} 41. Bc5 {[%emt 0:02:24]} Ra8 {[%emt 0:00:38]} 42. Bd4 {[%emt 0:00:40]} Rb4 {[%emt 0:00:16]} 43. Bc5 {[%emt 0:00:33]} Rc4 {[%emt 0:00:18]} 0-1

[Event "7th Sharjah Masters 2024"]
[Site "Sharjah"]
[Date "2024.05.14"]
[Round "1.39"]
[White "Aditya Mittal"]
[Black "Cardoso Cardoso, Jose Gabriel"]
[Result "*"]
[ECO "B92"]
[WhiteElo "2608"]
[BlackElo "2497"]
[Annotator "TA"]
[PlyCount "71"]
[EventDate "2024.05.13"]
[EventType "swiss"]
[EventCountry "UAE"]
[SourceTitle "playchess.com"]
[Source "ChessBase"]
[SourceQuality "1"]
[TimeControl "5400+30"]

{[%evp 13,71,12,23,-4,-22,-18,6,24,64,64,68,71,128,121,139,142,130,144,139,137,144,143,165,146,233,229,222,220,191,81,80,0,20,0,8,8,8,0,0,0,0,0,8,0,0,0,0,0,0,0,0,0,0,0,0,0,0,0,0,0]} 1. e4 {[%emt 0:00:01]} c5 {[%emt 0:00:12]} 2. Nf3 {[%emt 0:00:02]} d6 {[%emt 0:00:09]} 3. d4 {[%emt 0:00:01]} cxd4 {[%emt 0:00:10]} 4. Nxd4 {[%emt 0:00:02]} Nf6 {[%emt 0:00:10]} 5. Nc3 {[%emt 0:00:01]} a6 {[%emt 0:00:11]} 6. Be2 {[%emt 0:00:02]} e5 {[%emt 0:00:36]} 7. Nb3 {[%emt 0:00:01]} Be7 {[%emt 0:00:16]} 8. h4 {[%emt 0:00:02]} Be6 {[%emt 0:03:18]} 9. f4 {[%emt 0:00:02]} exf4 {[%emt 0:11:50]} 10. Bxf4 {[%emt 0:00:29]} d5 {[%emt 0:01:56]} 11. e5 {[%emt 0:04:54]} Nfd7 {[%emt 0:01:22]} 12. Nxd5 {[%emt 0:17:15]} Bxh4+ {[%emt 0:00:57]} (12... Nc6 $142) 13. g3 $16 {[%emt 0:00:05]} Be7 {[%emt 1:15:53]} 14. Bg4 {[%emt 0:16:28] White has more active pieces.} Nc6 {[%emt 1:14:26]} 15. Bxe6 {[%emt 0:06:29]} fxe6 {[%emt 0:00:05] [#]} 16. Qg4 $1 {[%emt 0:00:03][%csl LRe6,LRg7]} exd5 {[%emt 0:14:12]} 17. Qxg7 {[%emt 0:00:19]} Rf8 {[%emt 0:09:32]} 18. Rxh7 {[%emt 0:53:14] White threatens Qg6+ and mate.} Qb6 {[%emt 0:00:29]} (18... Ncxe5 $16 {was called for.} 19. Bxe5 Bb4+ 20. Bc3 Qe7+ 21. Qxe7+ Bxe7) 19. Qg6+ $18 {[%emt 0:01:07]} Kd8 {[%emt 0:00:05]} 20. O-O-O {[%emt 0:00:28]} Nb4 {[%emt 0:06:24] [#]} 21. Qxb6+ {[%emt 0:19:49]} (21. Qg7 $1 $18 {[%cal Rg7e7] and White stays clearly on top.} Re8 22. Kb1) 21... Nxb6 $16 {[%emt 0:00:10]} 22. Na5 {[%emt 0:00:03]} (22. Nd4 $16) 22... Rc8 {[%emt 0:39:44] The position is equal.} 23. c3 {[%emt 0:07:24] Chess con chili.} Nxa2+ {[%emt 0:11:32]} 24. Kb1 {[%emt 0:02:32]} (24. Kc2 {is more complex.} Nb4+ 25. Kb1 Nc6 26. Nxb7+ Kc7 27. Nc5) 24... Nxc3+ $1 {[%emt 0:00:13]} 25. bxc3 {[%emt 0:00:01]} Ke8 $1 {[%emt 0:01:36]} 26. Rd3 {[%emt 0:10:40]} Na4 {[%emt 0:03:52]} 27. Kc2 {[%emt 0:02:09]} (27. Nxb7 Rb8 (27... Rxc3 28. Rd4 $11) 28. Kc2 Rxb7 $17) 27... b5 {[%emt 0:02:09][%cal Bb7b5,Bb5b4][%mdl 32]} 28. Rh6 {[%emt 0:02:22][%cal Oa5c6]} b4 {[%emt 0:04:07]} 29. Nc6 {[%emt 0:10:27]} ({Much weaker is} 29. Rxa6 Nc5 (29... Rxc3+ $2 {too greedy.} 30. Rxc3 bxc3 31. e6 $18) 30. Rh6 Nxd3 31. Kxd3 bxc3 $17 (31... Rxc3+ 32. Kd4 $17)) (29. Rxd5 b3+ 30. Nxb3 (30. Kxb3 $2 Rxc3+ 31. Ka2 Ra3+ 32. Kb1 Nc3+ 33. Kb2 Nxd5 $19) 30... Rxc3+ 31. Kd2 Rxb3 $15) 29... Nxc3 {[%emt 0:02:39]} 30. Kb3 {[%emt 0:00:10]} a5 {[%emt 0:01:03]} 31. Nxa5 {[%emt 0:04:48]} Ra8 {[%emt 0:00:07]} 32. Nc6 {[%emt 0:00:17]} Ra3+ {[%emt 0:00:34]} 33. Kb2 {[%emt 0:01:24]} Ra2+ {[%emt 0:00:31]} 34. Kb3 {[%emt 0:00:16][%cal Oc6e7] Nxe7! is the strong threat.} Ra3+ {[%emt 0:00:08]} 35. Kb2 {[%emt 0:00:01]} Ra2+ {[%emt 0:00:44]} 36. Kb3 {[%emt 0:00:52] White really could win this.   Weighted Error Value: White=0.17 (very precise) /Black=0.10 (very precise) .  Mistake:       	White=2     	Black=2      Inaccurate:     	---       	Black=1      OK:         	White=12    	Black=11     Best:        	White=6     	Black=2      Strong:       	White=1     	Black=2} *

[Event "7th Sharjah Masters 2024"]
[Site "Sharjah"]
[Date "2024.05.14"]
[Round "1.40"]
[White "Iniyan, Pa"]
[Black "Idani, Pouya"]
[Result "1-0"]
[ECO "D30"]
[WhiteElo "2497"]
[BlackElo "2605"]
[Annotator "RC"]
[PlyCount "98"]
[EventDate "2024.05.13"]
[EventType "swiss"]
[EventCountry "UAE"]
[SourceTitle "playchess.com"]
[Source "ChessBase"]
[SourceQuality "1"]
[TimeControl "5400+30"]

1. d4 {[%emt 0:00:11]} Nf6 {[%emt 0:00:06]} 2. c4 {[%emt 0:00:06]} e6 {[%emt 0:00:03]} 3. Nf3 {[%emt 0:00:08]} d5 {[%emt 0:00:05]} 4. Bg5 {[%emt 0:00:08]} dxc4 {[%emt 0:00:06]} 5. e4 {[%emt 0:00:15]} c5 {[%emt 0:00:06]} 6. Bxc4 {[%emt 0:03:36]} cxd4 {[%emt 0:01:15]} 7. O-O {[%emt 0:01:09]} Nc6 {[%emt 0:02:06]} 8. Bb5 {[%emt 0:08:42]} Qb6 {[%emt 0:10:49]} 9. Nxd4 {[%emt 0:13:11]} Nxe4 {[%emt 0:07:51]} 10. Nxc6 {[%emt 0:12:01]} Bd7 {[%emt 0:00:15]} 11. Nxa7 {[%emt 0:00:05]} Bxb5 {[%emt 0:00:08]} 12. Be3 {[%emt 0:00:07]} Bc5 {[%emt 0:03:58]} 13. Bxc5 {[%emt 0:00:42]} Qxc5 {[%emt 0:01:18]} 14. Nxb5 {[%emt 0:00:40]} Qxb5 {[%emt 0:00:05]} 15. Na3 {[%emt 0:06:39]} Qa4 {[%emt 0:00:36]} 16. Qxa4+ {[%emt 0:08:04]} Rxa4 {[%emt 0:00:06]} 17. Rfc1 {[%emt 0:00:12]} O-O {[%emt 0:05:22]} 18. Rc7 {[%emt 0:02:06]} Rb4 {[%emt 0:00:38]} 19. b3 {[%emt 0:00:55]} h6 {[%emt 0:06:13]} 20. Rac1 {[%emt 0:02:34]} Rd8 {[%emt 0:10:59]} 21. f3 {[%emt 0:07:27]} Nf6 {[%emt 0:00:24]} 22. Nc2 {[%emt 0:00:12]} Rb5 {[%emt 0:02:00]} 23. Ne3 {[%emt 0:00:08]} Rd2 {[%emt 0:09:09]} 24. R1c2 {[%emt 0:01:10]} Rd3 {[%emt 0:01:18]} 25. R2c3 {[%emt 0:01:06]} Rd2 {[%emt 0:00:08]} 26. Rc2 {[%emt 0:03:28]} Rd3 {[%emt 0:00:07]} 27. Kf2 {[%emt 0:01:40]} Kf8 {[%emt 0:01:52]} 28. Ke2 {[%emt 0:01:11]} Rd8 {[%emt 0:01:08]} 29. R2c5 {[%emt 0:01:50]} Rxc5 {[%emt 0:02:39]} 30. Rxc5 {[%emt 0:00:08]} Ke7 {[%emt 0:00:10]} 31. Rc7+ {[%emt 0:04:33]} Rd7 {[%emt 0:00:05]} 32. Rxd7+ {[%emt 0:00:05]} Kxd7 {[%emt 0:00:32]} 33. a4 {[%emt 0:01:27]} Kc6 {[%emt 0:02:27]} 34. Kd3 {[%emt 0:00:10]} Nd7 {[%emt 0:01:18]} 35. Nc4 {[%emt 0:03:38]} f6 {[%emt 0:07:10]} 36. b4 {[%emt 0:01:13]} h5 {[%emt 0:01:10]} 37. Kd4 {[%emt 0:06:02]} b5 {[%emt 0:03:58]} 38. axb5+ {[%emt 0:03:33]} Kxb5 {[%emt 0:00:06]} 39. Kc3 {[%emt 0:00:04]} e5 {[%emt 0:02:02]} 40. Nd6+ {[%emt 0:00:47]} Kc6 {[%emt 0:00:05]} 41. Nf5 {[%emt 0:00:07]} g5 {[%emt 0:00:07]} 42. Kd3 {[%emt 0:04:17]} Nb6 {[%emt 0:02:42]} 43. Ng7 {[%emt 0:03:57]} h4 {[%emt 0:01:38]} 44. Ke4 {[%emt 0:00:21]} Kd7 {[%emt 0:04:33]} 45. Kf5 {[%emt 0:00:46]} Nd5 {[%emt 0:01:40]} 46. Nh5 {[%emt 0:00:15]} Ke7 {[%emt 0:00:16]} 47. b5 {[%emt 0:00:10]} Kf7 {[%emt 0:02:39]} 48. Nxf6 {[%emt 0:01:20]} Nxf6 {[%emt 0:00:22]} 49. b6 {[%emt 0:00:04]} h3 {[%emt 0:03:01]} 1-0

[Event "7th Sharjah Masters 2024"]
[Site "Sharjah"]
[Date "2024.05.14"]
[Round "1.41"]
[White "Gupta, Abhijeet"]
[Black "Assaubayeva, Bibisara"]
[Result "1/2-1/2"]
[ECO "D37"]
[WhiteElo "2604"]
[BlackElo "2481"]
[Annotator "TA"]
[PlyCount "71"]
[EventDate "2024.05.13"]
[EventType "swiss"]
[EventCountry "UAE"]
[SourceTitle "playchess.com"]
[Source "ChessBase"]
[SourceQuality "1"]
[TimeControl "5400+30"]

{[%evp 9,71,24,30,30,32,29,37,14,21,16,14,13,19,6,7,5,89,52,43,52,52,27,31,17,27,32,61,39,74,75,87,74,102,97,104,80,85,90,145,143,166,139,150,147,141,130,141,127,122,104,102,101,110,94,95,33,94,37,51,0,11,0,4,5]} 1. d4 {[%emt 0:00:16]} Nf6 {[%emt 0:00:05]} 2. c4 {[%emt 0:00:05]} e6 {[%emt 0:00:06]} 3. Nf3 {[%emt 0:00:58]} d5 {[%emt 0:00:06]} 4. Nc3 {[%emt 0:00:10]} h6 {[%emt 0:00:50]} 5. Bf4 {[%emt 0:03:35]} Bd6 {[%emt 0:00:20]} 6. Bxd6 {[%emt 0:00:28]} Qxd6 {[%emt 0:00:11]} 7. e3 {[%emt 0:00:13]} O-O {[%emt 0:01:25]} 8. Rc1 {[%emt 0:00:20] White is slightly better.} b6 {[%emt 0:00:14]} 9. cxd5 {[%emt 0:01:30]} Nxd5 {[%emt 0:00:16]} 10. Nxd5 {[%emt 0:01:13]} exd5 {[%emt 0:00:07]} 11. Bd3 {[%emt 0:02:23]} Be6 {[%emt 0:14:24]} 12. Bb1 {[%emt 0:08:40]} Qb4+ {[%emt 0:10:50]} (12... Nd7 $11) 13. Qd2 {[%emt 0:16:44]} Qxd2+ {[%emt 0:00:54]} 14. Kxd2 {[%emt 0:00:40]} Rc8 {[%emt 0:00:38]} 15. Rc3 {[%emt 0:01:48]} c5 {[%emt 0:04:56]} 16. b3 {[%emt 0:03:27]} Nd7 {[%emt 0:02:29]} 17. Rhc1 {[%emt 0:00:42]} Rd8 {[%emt 0:04:10]} 18. Bd3 {[%emt 0:01:58]} Bg4 {[%emt 0:07:07]} 19. Ng1 {[%emt 0:02:02]} a5 {[%emt 0:04:37]} 20. f3 {[%emt 0:08:22]} cxd4 {[%emt 0:09:09]} 21. exd4 {[%emt 0:00:05]} Be6 {[%emt 0:00:07]} 22. Bb5 {[%emt 0:00:29]} Nf6 {[%emt 0:04:39]} 23. Ne2 {[%emt 0:01:42]} Bd7 {[%emt 0:03:41]} (23... Ne8 $142) 24. Bxd7 $16 {[%emt 0:02:00]} Nxd7 {[%emt 0:00:13]} 25. Rc6 {[%emt 0:03:46]} Rab8 {[%emt 0:09:57]} 26. Rd6 {[%emt 0:02:11]} Nf6 {[%emt 0:02:16]} 27. Rxd8+ {[%emt 0:01:02]} Rxd8 {[%emt 0:00:01][%mdl 4096] Endgame. KRN-KRN} 28. Rc7 {[%emt 0:00:27]} Kf8 {[%emt 0:02:12]} 29. Nc3 {[%emt 0:04:01]} Rd6 {[%emt 0:02:16]} 30. Rb7 {[%emt 0:03:09]} h5 {[%emt 0:01:36]} 31. g3 {[%emt 0:05:43]} g5 {[%emt 0:01:06][%cal Bg7g5,Bg5g4][%mdl 32]} 32. Kd3 {[%emt 0:00:58]} ({White should play} 32. Nd1 $16) 32... Kg7 {[%emt 0:02:19]} (32... g4 $14) 33. Rb8 {[%emt 0:01:26] White is more active.} (33. Nd1 $16) 33... g4 {[%emt 0:01:25]} 34. f4 {[%emt 0:00:30]} (34. fxg4 $14 Nxg4 35. h4) 34... h4 {[%emt 0:01:32]} 35. gxh4 {[%emt 0:01:36]} Nh5 {[%emt 0:02:39]} 36. Ne2 {[%emt 0:23:51] Weighted Error Value: White=0.13 (very precise) /Black=0.15 (very precise) .  Mistake:       	White=3     	Black=3      Inaccurate:     	White=1     	Black=3      OK:         	White=12    	Black=11     Best:        	---       	Black=3} 1/2-1/2

[Event "7th Sharjah Masters 2024"]
[Site "Sharjah"]
[Date "2024.05.14"]
[Round "1.42"]
[White "Seemann, Jakub"]
[Black "Kuybokarov, Temur"]
[Result "0-1"]
[ECO "A28"]
[WhiteElo "2475"]
[BlackElo "2602"]
[Annotator "TA"]
[PlyCount "82"]
[EventDate "2024.05.13"]
[EventType "swiss"]
[EventCountry "UAE"]
[SourceTitle "playchess.com"]
[Source "ChessBase"]
[SourceQuality "1"]
[TimeControl "5400+30"]

{[%evp 13,82,0,0,0,0,-2,0,0,0,0,0,0,0,-6,-16,-4,0,-12,0,-56,20,23,38,29,32,39,22,30,72,31,26,4,36,0,0,-26,-25,-91,0,0,0,6,23,0,14,8,60,64,60,-8,-8,-4,62,-160,-186,-182,-171,-304,-298,-293,-304,-302,-286,-604,-586,-691,-456,-443,-420,-375,-198]} 1. c4 {[%emt 1:31:00]} e5 {[%emt 1:31:00]} 2. Nc3 {[%emt 0:00:30]} Nf6 {[%emt 0:00:30]} 3. Nf3 {[%emt 0:00:30]} Nc6 {[%emt 0:00:30]} 4. d3 {[%emt 0:00:30]} d5 {[%emt 0:00:30]} 5. cxd5 {[%emt 0:00:30]} Nxd5 {[%emt 0:00:30]} 6. e4 {[%emt 0:00:30]} Nxc3 {[%emt 0:00:30]} 7. bxc3 {[%emt 0:00:30]} Bc5 {[%emt 0:00:30]} 8. Be2 {[%emt 0:00:30]} O-O {[%emt 0:00:30]} 9. O-O {[%emt 0:00:30]} Bg4 {[%emt 0:00:30]} 10. Nd2 {[%emt 0:00:30] The position is equal.} Bxe2 {[%emt 0:00:30]} 11. Qxe2 {[%emt 0:00:30]} Qe7 {[%emt 0:00:30]} 12. Nb3 {[%emt 0:00:30]} Bb6 {[%emt 0:00:30]} 13. Bb2 {[%emt 0:00:30]} Rad8 {[%emt 0:00:30]} 14. Rad1 {[%emt 0:00:30]} a5 {[%emt 0:00:30]} 15. a4 {[%emt 0:00:30]} Qe6 {[%emt 0:00:30]} 16. Nd2 {[%emt 0:00:30]} (16. Qc2 $11) 16... Bc5 {[%emt 0:00:30]} (16... Qa2 $15 17. Nc4 Qxa4) 17. Nc4 $11 {[%emt 0:00:30]} f5 {[%emt 0:00:30]} 18. exf5 {[%emt 0:00:30]} Qxf5 {[%emt 0:00:30]} 19. Bc1 {[%emt 0:00:30]} Rf7 {[%emt 0:00:30]} 20. Be3 {[%emt 0:00:30]} Bf8 {[%emt 0:00:30]} 21. Qc2 {[%emt 0:00:30]} b6 {[%emt 0:00:30]} 22. Rd2 {[%emt 0:00:30]} Ne7 {[%emt 0:00:30]} 23. Re2 {[%emt 0:00:30]} Ng6 {[%emt 0:00:30]} 24. d4 {[%emt 0:00:30]} exd4 {[%emt 0:00:30]} 25. cxd4 {[%emt 0:00:30] [#]} (25. Qxf5 $1 $11 {keeps the balance.} Rxf5 26. Bxd4) 25... Qd5 {[%emt 0:00:30] Black is more active.} ({Better is} 25... Nf4 $1 $17 26. Rd2 Bb4 27. Qxf5 Rxf5) 26. Ne5 {[%emt 0:00:30]} Nxe5 {[%emt 0:00:30]} 27. dxe5 {[%emt 0:00:30][%cal Bd4e5,Be5e6][%mdl 32]} Bb4 {[%emt 0:00:30] Repels Rd2} (27... Qxe5 $5 28. Bxb6 Qh5 $11) 28. f4 {[%emt 0:00:30]} c5 {[%emt 0:00:30]} 29. Kh1 {[%emt 0:00:30]} Qd3 {[%emt 0:00:30]} (29... g6 $11) 30. e6 $14 {[%emt 0:00:30]} Rb7 {[%emt 0:00:30]} 31. Qa2 {[%emt 0:00:30]} (31. Qxd3 $1 $14 Rxd3 32. f5) 31... c4 $11 {[%emt 0:00:30]} 32. f5 {[%emt 0:00:30]} Rd5 {[%emt 0:00:30]} (32... b5 $11) 33. h3 $2 {[%emt 0:00:30]} (33. Bg1 $1 $14 Rc7 34. Rb1 (34. Bxb6 Rxf5 35. Rxf5 Qxf5 $11)) 33... Re5 $1 $17 {[%emt 0:00:30]} ({Stronger than} 33... Rxf5 34. Rxf5 Qxf5 35. Qxc4 $16) 34. Rf3 {[%emt 0:00:30]} h5 {[%emt 0:00:30][%cal Og8h7]} 35. Qc2 {[%emt 0:00:30]} (35. Qb2 $142 Rxf5 36. Rxf5 Qxf5 37. Bf2) 35... b5 {[%emt 0:00:30]} 36. axb5 {[%emt 0:00:30]} Rbxb5 {[%emt 0:00:30]} 37. f6 {[%emt 0:00:30]} gxf6 {[%emt 0:00:30] Threatens to win with ...Bd6.} 38. Rg3+ $2 {[%emt 0:00:30]} (38. Ref2 Qxc2 (38... Rxe3 39. Rxe3 Qxc2 40. Rxc2 $16) (38... Rxe6 $2 39. Bd4 $19) 39. Rxc2) 38... Kh7 {[%emt 0:00:30]} 39. Rf2 {[%emt 0:00:30]} Be1 {[%emt 0:00:30] [#] ( -> ...Qxc2)} 40. Rgf3 {[%emt 0:00:30]} Bxf2 {[%emt 0:00:30]} 41. Qxf2 {[%emt 0:00:30][%cal Of3f6]} Rxe6 {[%emt 0:00:30] Weighted Error Value: White=0.41/Black=0.28 (precise) .  Mistake:       	White=6     	Black=5      Inaccurate:     	White=3     	Black=2      OK:         	White=10    	Black=8      Best:        	White=2     	---        Strong:       	---       	Black=1} (41... Rf5 $142 42. Bf4 Qe4) 0-1